[Event "12th National Amateur Chess-ch 2025"]
[Site "Bihar"]
[Date "2025.03.27"]
[Round "4.15"]
[White "Nivedita V C"]
[Black "Pradiksha P S"]
[Result "1-0"]
[Annotator "TA"]
[ECO "E07"]
[WhiteElo "1950"]
[BlackElo "1789"]
[PlyCount "95"]
[EventDate "2025.03.25"]
[EventCountry "IND"]
[SourceTitle "playchess.com"]
[Source "ChessBase"]
[SourceQuality "1"]
[TimeControl "5400+30"]

{[%evp 19,95,37,38,35,33,44,52,43,50,52,52,53,99,27,155,143,160,148,166,175,163,185,213,54,137,147,152,142,146,161,144,156,128,136,371,362,368,379,375,363,350,332,315,318,414,422,412,410,415,405,435,428,427,419,478,487,450,456,525,414,605,603,648,651,644,634,630,636,1847,1826,1627,1517,29978,29978,29982,29983,29983,29983]} 1. Nf3 {[%emt 0:01:17]} d5 {[%emt 0:00:14]} 2. d4 {[%emt 0:00:23]} Nf6 {[%emt 0:00:07]} 3. c4 {[%emt 0:00:04]} e6 {[%emt 0:00:21]} 4. g3 {[%emt 0:00:05]} Be7 {[%emt 0:00:23]} 5. Bg2 {[%emt 0:00:04]} O-O {[%emt 0:00:21]} 6. O-O {[%emt 0:00:04]} c6 {[%emt 0:01:14]} 7. Nc3 {[%emt 0:00:11][%cal Bb1c3,Bc3e4,Be4g5][%mdl 32]} Nbd7 {[%emt 0:00:16]} 8. Nd2 {[%emt 0:00:14]} b6 {[%emt 0:02:31]} 9. e4 {[%emt 0:00:41]} dxe4 {[%emt 0:00:50] has lost popularity (9...dxc4).} 10. Ndxe4 {[%emt 0:00:25]} Bb7 {[%emt 0:00:12]} 11. Bf4 {[%emt 0:09:28] E07: Closed Catalan: Main Line (5 Nf3 0-0 6 0-0 Nbd7).} Nxe4 {[%emt 0:02:50]} 12. Nxe4 {[%emt 0:00:06]} Nf6 {[%emt 0:00:17]} 13. Qc2 {[%emt 0:15:16] White is slightly better.} Nh5 {[%emt 0:12:03]} 14. Be3 {[%emt 0:04:25]} f5 {[%emt 0:02:25]} 15. Qe2 {[%emt 0:02:12]} Qe8 $146 {[%emt 0:03:58]} (15... g6 $14 {should be considered.}) (15... g6 16. Nc3 f4 17. Bxf4 Nxf4 18. gxf4 Rf6 19. d5 cxd5 20. cxd5 Bd6 21. Rad1 exd5 22. Bxd5+ Bxd5 23. Nxd5 {½-½ Hong,A (2449)-Guo,A (2358) USA-ch U16 Chess.com INT rapid 2020 (2)}) 16. Bf3 {[%emt 0:11:18]} (16. Ng5 $16 Bxg5 17. Bxg5) 16... Nf6 {[%emt 0:07:21]} (16... g6 $1 $11 {keeps the balance.}) 17. Ng5 $1 $36 {[%emt 0:04:33][%mdl 2048] White has strong initiative.} Bd6 {[%emt 0:01:50]} 18. Bd2 $1 {[%emt 0:05:04][%cal Of1e1] White is more active.} e5 {[%emt 0:01:42]} 19. dxe5 {[%emt 0:00:06]} Qxe5 {[%emt 0:07:59]} 20. Qd3 $1 {[%emt 0:02:48] Strongly threatening Bf4.} Rad8 {[%emt 0:04:47][%cal Od6b4]} 21. Rfe1 $2 {[%emt 0:02:57]} (21. Bc3 $1 $18 {[%cal Rc3e5]} Bb4 22. Qxd8 Bxc3 23. Qd3) 21... Bc5 {[%emt 0:02:19]} (21... Ne4 $1 $14 22. Bc3 Bb4 23. Qxd8 (23. Nxe4 Rxd3 24. Bxe5 Bxe1 $17) 23... Rxd8 24. Bxe5 Nxg5) 22. Qc2 {[%emt 0:00:53]} (22. Rxe5 Rxd3 23. Be3 Bxe3 24. fxe3 h6 $19) 22... Ne4 {[%emt 0:13:38]} 23. Bf4 {[%emt 0:02:53]} Qf6 {[%emt 0:04:54]} 24. Bxe4 {[%emt 0:08:23]} fxe4 {[%emt 0:00:40]} 25. Qxe4 {[%emt 0:00:13][%csl Gg5][%cal Re4h7]} Bxf2+ {[%emt 0:01:29] [#]} 26. Kg2 $1 {[%emt 0:02:56][%csl Gg5][%cal Re4h7]} (26. Kxf2 Qxg5 27. Kg1 Qg6 $14) 26... g6 $2 {[%emt 0:04:27] [#] A mistake that costs the game.} ({Wrong is} 26... Qh6 $2 27. Ne6 (27. Kxf2 Qxg5 28. Kg1 Qc5+ 29. Be3 Qb4 $11) 27... Qf6 28. Kxf2 $18) (26... c5 $16 27. Qxb7 Bxe1 28. Rxe1 Qxb2+ 29. Kh3 Qf6) 27. Qe7 $1 $18 {[%emt 0:00:36]} Qxe7 {[%emt 0:07:02]} 28. Rxe7 {[%emt 0:00:06]} Bc8 {[%emt 0:01:57]} 29. Kxf2 {[%emt 0:00:17]} h6 {[%emt 0:00:45]} 30. Nf3 {[%emt 0:02:56]} g5 {[%emt 0:05:28]} 31. Be5 {[%emt 0:00:22]} Rf5 {[%emt 0:00:59]} 32. g4 {[%emt 0:00:33]} ({Less strong is} 32. Rxa7 Rd3 $16) 32... Rf7 {[%emt 0:00:07]} 33. Rxf7 {[%emt 0:00:05]} Kxf7 {[%emt 0:00:05]} 34. h3 {[%emt 0:00:07]} Bb7 {[%emt 0:00:41]} 35. Bc3 {[%emt 0:00:25]} c5 {[%emt 0:00:12]} 36. Ke3 {[%emt 0:00:10]} Re8+ {[%emt 0:00:44]} 37. Ne5+ {[%emt 0:00:06]} Ke6 {[%emt 0:00:05]} 38. Rf1 {[%emt 0:01:39]} Bg2 {[%emt 0:01:30]} 39. Rf2 {[%emt 0:00:13]} Ba8 {[%emt 0:02:15]} (39... Bb7 $142 40. Nf7 Ba6 41. Rf6+ (41. Nxh6 Bxc4 42. Rf5 Kd7+ 43. Kf3 Bxa2 $18) 41... Kd7+ 42. Ne5+ Kc7) 40. Rf7 {[%emt 0:00:15]} Re7 {[%emt 0:00:45]} 41. Rf8 {[%emt 0:00:13]} Bb7 {[%emt 0:01:33]} 42. Rh8 {[%emt 0:00:06][%cal Rh8h6] Dodges Rh7} Kd6 {[%emt 0:00:18]} 43. Rxh6+ {[%emt 0:00:08]} Re6 {[%emt 0:00:06]} 44. Rxe6+ {[%emt 0:00:16]} Kxe6 45. Nf3 {[%emt 0:00:02]} a6 {[%emt 0:01:25]} 46. Nxg5+ {[%emt 0:00:06] White mates.} Ke7 {[%emt 0:00:08]} 47. h4 {[%emt 0:00:04]} Bc8 {[%emt 0:00:13]} 48. Kf4 {[%emt 0:00:05] Weighted Error Value: White=0.15 (very precise) /Black=0.59  Loses game:     	---       	Black=1      Mistake:       	White=2     	Black=4      Inaccurate:     	---       	Black=1      OK:         	White=15    	Black=12     Best:        	---       	Black=1      Strong:       	White=5     	---} 1-0

[Event "12th National Amateur Chess-ch 2025"]
[Site "Bihar"]
[Date "2025.03.27"]
[Round "4.16"]
[White "Aamuktha Guntaka"]
[Black "Lakshanaa R"]
[Result "1-0"]
[Annotator "TA"]
[ECO "B12"]
[WhiteElo "1910"]
[BlackElo "1748"]
[PlyCount "69"]
[EventDate "2025.03.25"]
[EventCountry "IND"]
[SourceTitle "playchess.com"]
[Source "ChessBase"]
[SourceQuality "1"]
[TimeControl "5400+30"]

{[%evp 10,68,27,19,32,29,21,29,85,40,70,0,58,60,83,33,122,125,153,147,137,120,137,81,64,64,64,66,67,100,145,96,93,72,115,116,100,66,664,310,297,312,2681,2670,2767,2546,29991,29992,29992,29993,29996,29995,29995,29996,29996,29997,29997,29998,29998,29999,29999]} 1. e4 {[%emt 0:00:53]} c6 {[%emt 0:00:08]} 2. d4 {[%emt 0:00:11]} d5 {[%emt 0:00:06]} 3. e5 {[%emt 0:00:06]} Bf5 {[%emt 0:00:05]} 4. Nd2 {[%emt 0:00:06]} e6 {[%emt 0:00:17]} 5. Nb3 {[%emt 0:00:14]} Nd7 {[%emt 0:00:40]} 6. Nf3 {[%emt 0:00:46]} h6 {[%emt 0:00:55] 6...Qc7 gains popularity. B12: Caro-Kann: Advance Variation.} 7. Be2 {[%emt 0:00:23]} Ne7 {[%emt 0:00:56]} 8. O-O {[%emt 0:00:40]} c5 {[%emt 0:03:30]} 9. dxc5 {[%emt 0:06:00]} Nc6 {[%emt 0:00:39][%csl LRc5,LRe5][%cal Of5g6]} 10. Bb5 $146 {[%emt 0:06:23]} (10. Nfd4 $14) (10. Be3 Ndxe5 11. Nxe5 Nxe5 12. Bb5+ Nc6 13. Nd4 Rc8 14. Nxf5 exf5 15. Qf3 d4 16. Rad1 Bxc5 17. Qxf5 {1-0 Zhigalko,S (2572)-Kleinman,M (2387) Titled Tuesday intern op 15th Nov Late blitz 2022 (1)}) 10... Qc7 {[%emt 0:04:13]} (10... Bg4 $11) 11. Nfd4 $14 Bh7 {[%emt 0:03:00]} 12. f4 {[%emt 0:12:39]} (12. Be3 $16) 12... Nxd4 (12... a6 $14) 13. Qxd4 $16 {[%emt 0:07:14] A sharp opening} Bxc2 {[%emt 0:17:59] Black is weak on the dark squares} 14. Be3 {[%emt 0:00:58]} a6 {[%emt 0:17:26]} 15. Ba4 {[%emt 0:08:42]} Be7 {[%emt 0:15:52]} 16. Rac1 {[%emt 0:09:21]} (16. f5 $142) 16... Bxb3 {[%emt 0:01:36]} 17. Bxb3 {[%emt 0:01:48]} O-O {[%emt 0:09:15]} 18. Ba4 {[%emt 0:06:38]} f6 {[%emt 0:09:58]} 19. exf6 {[%emt 0:08:45] White is much more active.} Bxf6 {[%emt 0:00:30]} 20. Qd2 {[%emt 0:00:52]} (20. Qd3 $142) 20... Nb8 {[%emt 0:01:41]} 21. Bd1 {[%emt 0:07:56]} d4 {[%emt 0:01:55] [#]} 22. Bf2 {[%emt 0:00:46][%cal Od1c2]} (22. Bxd4 $2 {perishes.} Rd8 23. Qe1 (23. Rc4 $2 Nc6 $19) 23... Bxd4+ $19) 22... e5 {[%emt 0:00:47]} 23. fxe5 {[%emt 0:01:12]} Qxe5 {[%emt 0:04:22][%mdl 8192] A mistake that costs the game.} (23... Bg5 $14 24. Qd3 (24. Bb3+ Kh8 $18) 24... Bxc1) 24. Bb3+ {[%emt 0:05:42]} (24. Qd3 $142 Qe7 25. Re1 (25. Bxd4 Bxd4+ 26. Qxd4 Rxf1+ 27. Kxf1 Nc6 $18) (25. Bc2 g6 $18)) 24... Kh8 $18 {[%emt 0:00:08] [#]} 25. Qd3 $1 {[%emt 0:00:38] Strongly threatening Bc2.} g5 $2 {[%emt 0:04:55]} (25... g6 26. Bh4 (26. Qxg6 Qg5 $18) 26... Nd7) 26. Qg6 {[%emt 0:03:26][%cal Rg6h6]} Bg7 {[%emt 0:01:17]} 27. Bc2 {[%emt 0:00:14][%csl Gc2][%cal Rg6h7]} Kg8 {[%emt 0:00:25][%cal Bh8g8,Bg8f7,Bf7e8,Be8d8,Bd8c7,Bc7c8][%mdl 32]} 28. Qh7+ {[%emt 0:00:07] White mates.} Kf7 {[%emt 0:00:04]} 29. Bxd4+ {[%emt 0:00:22] A strong pair of Bishops.} Qf4 {[%emt 0:00:18]} 30. Qxg7+ {[%emt 0:00:09]} Ke8 {[%emt 0:00:05]} 31. Rxf4 {[%emt 0:00:13]} gxf4 {[%emt 0:00:04]} 32. Re1+ {[%emt 0:00:08]} Kd8 {[%emt 0:00:04]} 33. Qxf8+ {[%emt 0:00:10]} Kc7 {[%emt 0:00:02]} 34. Qd6+ {[%emt 0:00:11]} Kc8 {[%emt 0:00:05]} 35. Re8# {[%emt 0:00:06] Weighted Error Value: White=0.20 (precise) /Black=0.64  Loses game:     	---       	Black=1      Mistake:       	White=5     	Black=4      Inaccurate:     	White=2     	Black=2      OK:         	White=3     	Black=6      Best:        	White=4     	Black=2} 1-0

[Event "12th National Amateur Chess-ch 2025"]
[Site "Bihar"]
[Date "2025.03.27"]
[Round "4.17"]
[White "Kashvy Sabharwal"]
[Black "Aayusree Sarkar"]
[Result "1-0"]
[Annotator "NA RC"]
[ECO "A84"]
[WhiteElo "1640"]
[BlackElo "1677"]
[PlyCount "77"]
[EventDate "2025.03.25"]
[EventCountry "IND"]
[SourceTitle "playchess.com"]
[Source "ChessBase"]
[SourceQuality "1"]
[TimeControl "5400+30"]

1. d4 {[%emt 0:00:24]} d5 {[%emt 0:00:22]} 2. Nf3 {[%emt 0:00:16]} e6 {[%emt 0:00:20]} 3. Bf4 {[%emt 0:00:05]} f5 {[%emt 0:00:16]} 4. e3 {[%emt 0:00:16]} Nf6 {[%emt 0:00:41]} 5. c4 {[%emt 0:00:15]} c6 {[%emt 0:00:23]} 6. Nc3 {[%emt 0:00:27]} Be7 {[%emt 0:00:42]} 7. Bd3 {[%emt 0:01:23]} O-O {[%emt 0:00:37]} 8. h3 {[%emt 0:02:29]} b6 {[%emt 0:02:50]} 9. Rc1 {[%emt 0:01:26]} Ne4 {[%emt 0:01:13]} 10. O-O {[%emt 0:01:28]} Bb7 {[%emt 0:05:34]} 11. a3 {[%emt 0:06:23]} g5 {[%emt 0:05:36]} 12. Bh2 {[%emt 0:01:13]} Nd7 {[%emt 0:04:32]} 13. b4 {[%emt 0:12:20]} a5 {[%emt 0:12:56]} 14. Qb3 {[%emt 0:14:09]} Kh8 {[%emt 0:08:12]} 15. b5 {[%emt 0:19:45]} c5 {[%emt 0:08:05]} 16. cxd5 {[%emt 0:03:22]} cxd4 {[%emt 0:00:17]} 17. exd4 {[%emt 0:12:38]} Nxc3 {[%emt 0:02:09]} 18. dxe6 {[%emt 0:06:27]} Bxf3 {[%emt 0:04:24]} 19. gxf3 {[%emt 0:01:46]} Nxb5 {[%emt 0:01:04]} 20. Bxb5 {[%emt 0:00:56]} Nf6 {[%emt 0:01:10]} 21. Bc6 {[%emt 0:01:27]} Rc8 {[%emt 0:00:42]} 22. d5 {[%emt 0:00:18]} Bd6 {[%emt 0:00:09]} 23. Bg3 {[%emt 0:01:46]} Nh5 {[%emt 0:01:17]} 24. Qb2+ {[%emt 0:00:45]} Kg8 {[%emt 0:00:59]} 25. Be5 {[%emt 0:01:56]} Nf4 {[%emt 0:00:43]} 26. Bxf4 {[%emt 0:01:29]} Bxf4 {[%emt 0:00:37]} 27. Rc4 {[%emt 0:02:03]} Rxc6 {[%emt 0:05:23]} 28. dxc6 {[%emt 0:01:51]} Qd5 {[%emt 0:00:31]} 29. Qb3 {[%emt 0:02:50]} a4 {[%emt 0:01:27]} 30. Qc2 {[%emt 0:01:15]} Bc7 {[%emt 0:02:14]} 31. e7 {[%emt 0:01:56]} Re8 {[%emt 0:00:21]} 32. Rxa4 {[%emt 0:00:33]} Qe5 {[%emt 0:01:08]} 33. Qc4+ {[%emt 0:00:42]} Kg7 {[%emt 0:00:31]} 34. Qd4 {[%emt 0:00:08]} Qxd4 {[%emt 0:00:02]} 35. Rxd4 {[%emt 0:00:02]} Rxe7 {[%emt 0:00:50]} 36. Rd7 {[%emt 0:00:25]} Rxd7 {[%emt 0:00:34]} 37. cxd7 {[%emt 0:00:05]} Bd8 {[%emt 0:00:05]} 38. Re1 {[%emt 0:00:06]} Kf7 {[%emt 0:00:12]} 39. Re8 {[%emt 0:00:08]} 1-0

[Event "12th National Amateur Chess-ch 2025"]
[Site "Bihar"]
[Date "2025.03.27"]
[Round "4.18"]
[White "Vaishnavi Radhakrishnan"]
[Black "Tanisha Khandelwal"]
[Result "1-0"]
[Annotator "NA RC"]
[ECO "B43"]
[WhiteElo "1658"]
[BlackElo "1564"]
[PlyCount "123"]
[EventDate "2025.03.25"]
[EventCountry "IND"]
[SourceTitle "playchess.com"]
[Source "ChessBase"]
[SourceQuality "1"]
[TimeControl "5400+30"]

1. e4 {[%emt 0:00:31]} c5 {[%emt 0:00:05]} 2. Nf3 {[%emt 0:00:35]} e6 {[%emt 0:00:05]} 3. d4 {[%emt 0:01:39]} cxd4 {[%emt 0:00:05]} 4. Nxd4 {[%emt 0:00:07]} a6 {[%emt 0:00:04]} 5. Nc3 {[%emt 0:02:30]} Qc7 {[%emt 0:00:11]} 6. a3 {[%emt 0:04:56]} b5 {[%emt 0:00:37]} 7. Bd2 {[%emt 0:00:39]} Bb7 {[%emt 0:01:29]} 8. Bd3 {[%emt 0:00:59]} Nf6 {[%emt 0:02:17]} 9. O-O {[%emt 0:02:45]} Be7 {[%emt 0:01:10]} 10. Nb3 {[%emt 0:08:57]} O-O {[%emt 0:02:28]} 11. f4 {[%emt 0:03:03]} d6 {[%emt 0:03:18]} 12. Qe2 {[%emt 0:01:20]} Nbd7 {[%emt 0:02:08]} 13. Kh1 {[%emt 0:00:58]} e5 {[%emt 0:10:33]} 14. f5 {[%emt 0:01:32]} d5 {[%emt 0:04:28]} 15. exd5 {[%emt 0:02:26]} Nxd5 {[%emt 0:01:01]} 16. Ne4 {[%emt 0:00:53]} N7f6 {[%emt 0:03:27]} 17. Na5 {[%emt 0:01:09]} Rfe8 {[%emt 0:06:39]} 18. Nxb7 {[%emt 0:02:31]} Qxb7 {[%emt 0:00:56]} 19. Rg1 {[%emt 0:02:10]} Rad8 {[%emt 0:03:34]} 20. Qf3 {[%emt 0:02:00]} Qd7 {[%emt 0:04:31]} 21. Ba5 {[%emt 0:01:02]} Rc8 {[%emt 0:01:36]} 22. Rad1 {[%emt 0:00:47]} Nf4 {[%emt 0:03:22]} 23. Nxf6+ {[%emt 0:01:09]} Bxf6 {[%emt 0:00:11]} 24. Be4 {[%emt 0:02:44]} Qa7 {[%emt 0:02:50]} 25. Bc6 {[%emt 0:02:04]} Rf8 {[%emt 0:01:17]} 26. Bb4 {[%emt 0:00:58]} Rfd8 {[%emt 0:02:01]} 27. Ba5 {[%emt 0:00:29]} Rf8 {[%emt 0:02:32]} 28. Rd7 {[%emt 0:01:15]} Qb8 {[%emt 0:01:54]} 29. Rgd1 {[%emt 0:01:25]} Bd8 {[%emt 0:05:38]} 30. Bb4 {[%emt 0:00:29]} Bc7 {[%emt 0:04:21]} 31. Bxf8 {[%emt 0:00:47]} Rxf8 {[%emt 0:00:13]} 32. Re7 {[%emt 0:01:50]} Qb6 {[%emt 0:02:59]} 33. b4 {[%emt 0:03:28]} Qb8 {[%emt 0:03:57]} 34. Qe4 {[%emt 0:02:17]} a5 {[%emt 0:02:23]} 35. bxa5 {[%emt 0:02:08]} Bxa5 {[%emt 0:00:45]} 36. Qxe5 {[%emt 0:01:06]} Qxe5 {[%emt 0:00:49]} 37. Rxe5 {[%emt 0:00:15]} b4 {[%emt 0:00:58]} 38. Rxa5 {[%emt 0:00:09]} bxa3 {[%emt 0:00:36]} 39. Rxa3 {[%emt 0:00:08]} h6 {[%emt 0:01:03]} 40. Ra8 {[%emt 0:00:19]} Rxa8 {[%emt 0:00:14]} 41. Bxa8 {[%emt 0:00:07]} g6 {[%emt 0:00:28]} 42. fxg6 {[%emt 0:00:35]} fxg6 {[%emt 0:00:20]} 43. c4 {[%emt 0:00:12]} Kg7 {[%emt 0:00:25]} 44. c5 {[%emt 0:00:12]} Ne6 {[%emt 0:01:08]} 45. c6 {[%emt 0:00:15]} Kf6 {[%emt 0:00:31]} 46. Bb7 {[%emt 0:00:29]} h5 {[%emt 0:00:21]} 47. Rd6 {[%emt 0:00:17]} Ke7 {[%emt 0:00:28]} 48. Rxe6+ {[%emt 0:00:11]} Kxe6 {[%emt 0:00:00]} 49. c7 {[%emt 0:00:14]} h4 {[%emt 0:00:04]} 50. c8=Q+ {[%emt 0:00:16]} Ke5 {[%emt 0:00:15]} 51. g3 {[%emt 0:00:58]} hxg3 {[%emt 0:00:29]} 52. hxg3 {[%emt 0:04:43]} g5 {[%emt 0:00:06]} 53. Qc6 {[%emt 0:00:25]} g4 {[%emt 0:00:20]} 54. Kg2 {[%emt 0:00:10]} Kf5 {[%emt 0:00:36]} 55. Bc8+ {[%emt 0:00:11]} Ke5 {[%emt 0:00:21]} 56. Bxg4 {[%emt 0:00:21]} Kd4 {[%emt 0:00:22]} 57. Qb5 {[%emt 0:00:13]} Ke3 {[%emt 0:00:18]} 58. Qc4 {[%emt 0:00:39]} Kd2 {[%emt 0:00:16]} 59. Qb3 {[%emt 0:00:31]} Kc1 {[%emt 0:00:20]} 60. Bf5 {[%emt 0:00:28]} Kd2 {[%emt 0:00:17]} 61. Kf2 {[%emt 0:00:56]} Kc1 {[%emt 0:00:18]} 62. Qc2# {[%emt 0:01:42]} 1-0

[Event "12th National Amateur Chess-ch 2025"]
[Site "Bihar"]
[Date "2025.03.28"]
[Round "6.1"]
[White "Arhan Jain"]
[Black "Ayaan Garg"]
[Result "0-1"]
[Annotator "TA"]
[ECO "E09"]
[WhiteElo "1914"]
[BlackElo "1983"]
[PlyCount "82"]
[EventDate "2025.03.25"]
[EventCountry "IND"]
[SourceTitle "playchess.com"]
[Source "ChessBase"]
[SourceQuality "1"]
[TimeControl "5400+30"]

{[%evp 21,82,14,2,0,0,0,8,0,0,0,0,0,-11,-4,-3,-8,-4,-8,-8,-26,-26,-37,-44,-103,-90,-100,-83,-138,-135,-133,-128,-158,-158,-159,-153,-135,-136,-136,-136,-166,-143,-173,-173,-150,-136,-175,-137,-245,-271,-855,-337,-826,-856,-807,-800,-762,-762,-29995,-105,-29994,-29995,-29995,-29996]} 1. d4 {[%emt 0:00:03]} d5 {[%emt 0:00:31]} 2. c4 {[%emt 0:00:09]} e6 {[%emt 0:00:04]} 3. Nf3 {[%emt 0:00:07]} Nf6 {[%emt 0:00:04]} 4. g3 {[%emt 0:00:03]} Be7 {[%emt 0:00:04]} 5. Bg2 {[%emt 0:00:03]} O-O {[%emt 0:00:07]} 6. O-O {[%emt 0:00:04]} Nbd7 {[%emt 0:00:04]} 7. Qc2 {[%emt 0:00:54]} c6 {[%emt 0:00:17]} 8. Nbd2 {[%emt 0:00:45]} b6 {[%emt 0:00:18]} 9. e4 {[%emt 0:00:19]} dxc4 {[%emt 0:00:21]} 10. Nxc4 {[%emt 0:03:27]} Bb7 {[%emt 0:00:04]} 11. Rd1 {[%emt 0:07:49] 11.Bf4 is the hot move.} c5 {[%emt 0:01:12]} 12. Nfe5 {[%emt 0:03:07] E09: Closed Catalan: Main Line: 7 Qc2 c6 8 Nbd2.} cxd4 {[%emt 0:01:55]} 13. Rxd4 {[%emt 0:01:28]} Qc7 {[%emt 0:00:19]} 14. Bf4 {[%emt 0:01:38] [#] Nxd7 is the strong threat. The position is equal.} Nxe5 {[%emt 0:00:18]} 15. Bxe5 {[%emt 0:00:06]} Qc6 {[%emt 0:00:05]} 16. Qe2 {[%emt 0:12:48]} Rad8 {[%emt 0:31:29] Repels Nd6} 17. Rad1 {[%emt 0:02:28]} Rxd4 {[%emt 0:01:59]} 18. Rxd4 {[%emt 0:00:35]} Ba6 {[%emt 0:00:58] [#]} 19. b3 {[%emt 0:12:25]} Qc5 {[%emt 0:02:06]} 20. Bxf6 {[%emt 0:03:32]} Bxf6 {[%emt 0:00:19]} 21. Rd1 $146 {[%emt 0:00:38]} (21. Rd7 b5 22. Qe3 Qc8 23. Rxa7 bxc4 24. e5 Bxe5 25. Qxe5 cxb3 26. Rc7 b2 27. Be4 Qd8 28. Kg2 Qd1 {0-1 Nyffenegger,M (2035)-Fischer,D (2123) Basel op 2018 (4)}) 21... Bd4 {[%emt 0:04:41]} 22. b4 {[%emt 0:03:43]} Bxf2+ {[%emt 0:00:48]} 23. Qxf2 {[%emt 0:00:04]} Qxc4 {[%emt 0:00:22]} 24. Bf1 {[%emt 0:01:13]} (24. Qd2 $142) 24... Qc8 $17 {[%emt 0:00:06]} 25. Bxa6 {[%emt 0:10:49]} Qxa6 {[%emt 0:00:07][%mdl 4096] Endgame KQR-KQR. Black is a pawn up.} 26. Rd2 {[%emt 0:01:11]} h6 {[%emt 0:02:09]} 27. Kg2 {[%emt 0:02:40]} Qb7 {[%emt 0:02:08]} 28. Qf3 {[%emt 0:01:10]} Rc8 {[%emt 0:01:17]} 29. e5 {[%emt 0:02:55]} Qc7 $36 {[%emt 0:01:13][%mdl 2048] Black is really pushing.} 30. Qf4 {[%emt 0:02:22]} Qc3 {[%emt 0:14:27] Strongly threatening ...g5.} 31. Rf2 {[%emt 0:01:00]} Qc6+ {[%emt 0:02:13]} 32. Kh3 {[%emt 0:00:37]} Qb7 {[%emt 0:02:17]} 33. Rd2 {[%emt 0:01:26]} b5 {[%emt 0:02:07]} 34. Rd4 {[%emt 0:02:13]} (34. Qe3 $17) 34... Rc2 $19 {[%emt 0:03:49] ( -> ...Qg2+)} 35. Rd8+ {[%emt 0:00:25]} Kh7 {[%emt 0:00:06]} 36. Rd2 {[%emt 0:00:04] Inhibits Qg2+.} (36. Qf1 Qe4 (36... Rxa2 $2 {is the wrong capture.} 37. Qb1+ g6 38. Qxa2 $18) 37. Rd7) 36... g5 {[%emt 0:04:17]} 37. Qe3 {[%emt 0:01:09]} Rxd2 {[%emt 0:00:36]} 38. Qxd2 {[%emt 0:00:05]} Qf3 {[%emt 0:00:10] ( -> ...Kg6)} 39. Qe1 {[%emt 0:01:28]} g4+ {[%emt 0:00:55]} 40. Kh4 {[%emt 0:00:05]} Qf5 {[%emt 0:00:09][%csl Gh6][%cal Rf5g5]} 41. Qe3 {[%emt 0:00:17]} Kg6 {[%emt 0:00:14] Weighted Error Value: White=0.84/Black=0.15 (very precise)   Mistake:       	White=4     	---        Inaccurate:     	---       	Black=1      OK:         	White=4     	Black=14     Best:        	---       	Black=1} 0-1